Workbook

Sheet A
A2: Enter Data Here! | H2: Contact TPFA for confirmation of your estimates.
A3: Please enter the following data in
A4: Column B of the appropriate row. | H4: SAMPLE
H5: LEASE PAYMENT CALCULATOR
A6: Client Agency Name: | B6: Any
A7: Client Agency Number: | B7: 999 | H7: USER AGENCY #: | J7: =B6 -> Any
A8: Vendor: | B8: Any | H8: USER AGENCY: | J8: =B7 -> 999 | L8: VENDOR PURCHASE | O8: FINANCING TERM
A9: Equipment Description: | B9: A/C Equip | L9: PRICE: | M9: =B10 -> 1000000 | O9: (IN YEARS): | P9: =B11 -> 15
A10: Vendor Purchase Price: | B10: 1000000 | H10: VENDOR:
A11: Financing Term (in Years): | B11: 15 | L11: ISSUANCE COSTS: | M11: =M9*0 -> 0 | O11: INITIAL FINANCING
A12: Initial Financing Rate: | B12: 0.05 | H12: EQUIPMENT: | J12: =B9 -> A/C Equip | O12: RATE: | P12: =B12 -> 0.05
L13: PRINCIPAL TO BE
A14: Vendor Payment Year: | B14: 2008 | H14: VENDOR PMT. DATE: | J14: =DATE(B14,B15,B16) -> 2008-09-01 | L14: AMORTIZED: | M14: =SUM(M9:M11) -> 1000000 | O14: ADMINISTRATION
A15: Vendor Payment Month: | B15: 9 | O15: EXPENSES: | P15: =B19 -> 0.01
A16: Vendor Payment Day: | B16: 1
S18: EFFECTIVE | W18: EFFECTIVE | AA18: EFFECTIVE | AE18: EFFECTIVE | AI18: EFFECTIVE | AM18: EFFECTIVE | AQ18: EFFECTIVE | AU18: EFFECTIVE | AY18: EFFECTIVE | BC18: EFFECTIVE | BG18: EFFECTIVE | BK18: EFFECTIVE | BO18: EFFECTIVE | BS18: EFFECTIVE | BW18: EFFECTIVE | CA18: EFFECTIVE | CE18: EFFECTIVE | CI18: EFFECTIVE | CM18: EFFECTIVE | CQ18: EFFECTIVE
A19: Administrative Rate: | B19: 0.01 | S19: INTEREST RATE TO | W19: INTEREST RATE TO | AA19: INTEREST RATE TO | AE19: INTEREST RATE TO | AI19: INTEREST RATE TO | AM19: INTEREST RATE TO | AQ19: INTEREST RATE TO | AU19: INTEREST RATE TO | AY19: INTEREST RATE TO | BC19: INTEREST RATE TO | BG19: INTEREST RATE TO | BK19: INTEREST RATE TO | BO19: INTEREST RATE TO | BS19: INTEREST RATE TO | BW19: INTEREST RATE TO | CA19: INTEREST RATE TO | CE19: INTEREST RATE TO | CI19: INTEREST RATE TO | CM19: INTEREST RATE TO | CQ19: INTEREST RATE TO
G20: PRIN | S20: =H25 -> 2009-08-01 | T20: 0.05919 | W20: =H26 -> 2010-08-01 | X20: 0.05919308 | AA20: =H27 -> 2011-08-01 | AB20: 0.05919308 | AE20: =#REF! ->  | AF20: 0.05919308 | AI20: =#REF! ->  | AJ20: 0.05919308 | AM20: =#REF! ->  | AN20: 0.05919308 | AQ20: =#REF! ->  | AR20: 0.05919308 | AU20: =#REF! ->  | AV20: 0.05919308 | AY20: =#REF! ->  | AZ20: 0.05919308 | BC20: =#REF! ->  | BD20: 0.05919308 | BG20: =#REF! ->  | BH20: 0.05919308 | BK20: =#REF! ->  | BL20: 0.05919308 | BO20: =#REF! ->  | BP20: 0.05919308 | BS20: =#REF! ->  | BT20: 0.05919308 | BW20: =#REF! ->  | BX20: 0.05919308 | CA20: =#REF! ->  | CB20: 0.05919308 | CE20: =#REF! ->  | CF20: 0.05919308 | CI20: =#REF! ->  | CJ20: 0.05919308 | CM20: =#REF! ->  | CN20: 0.05919308 | CQ20: =#REF! ->  | CR20: 0.05919308
G21: PMT | I21: OUTSTANDING | L21: ADMINISTRATION | M21: TOTAL | N21: INTEREST | O21: NET | P21: YEARLY | Q21: EFFECTIVE
D22: MO | E22: YR | G22: NO. | H22: DATE | I22: BALANCE | J22: PRINCIPAL | K22: INTEREST | L22: EXPENSES | M22: PAYMENT | N22: ADJUSTMENT | O22: PAYMENT | P22: PAYMENT | Q22: INTEREST RATE | S22: RENTS | T22: INTEREST | U22: BALANCE | W22: RENTS | X22: INTEREST | Y22: BALANCE | AA22: RENTS | AB22: INTEREST | AC22: BALANCE | AE22: RENTS | AF22: INTEREST | AG22: BALANCE | AI22: RENTS | AJ22: INTEREST | AK22: BALANCE | AM22: RENTS | AN22: INTEREST | AO22: BALANCE | AQ22: RENTS | AR22: INTEREST | AS22: BALANCE | AU22: RENTS | AV22: INTEREST | AW22: BALANCE | AY22: RENTS | AZ22: INTEREST | BA22: BALANCE | BC22: RENTS | BD22: INTEREST | BE22: BALANCE | BG22: RENTS | BH22: INTEREST | BI22: BALANCE | BK22: RENTS | BL22: INTEREST | BM22: BALANCE | BO22: RENTS | BP22: INTEREST | BQ22: BALANCE | BS22: RENTS | BT22: INTEREST | BU22: BALANCE | BW22: RENTS | BX22: INTEREST | BY22: BALANCE | CA22: RENTS | CB22: INTEREST | CC22: BALANCE | CE22: RENTS | CF22: INTEREST | CG22: BALANCE | CI22: RENTS | CJ22: INTEREST | CK22: BALANCE | CM22: RENTS | CN22: INTEREST | CO22: BALANCE | CQ22: RENTS | CR22: INTEREST | CS22: BALANCE
G24: 0 | H24: =J14 -> 2008-09-01 | I24: =M14 -> 1000000 | U24: =-$M$9 -> -1000000 | Y24: =-$M$9 -> -1000000 | AC24: =-$M$9 -> -1000000 | AG24: =-$M$9 -> -1000000 | AK24: =-$M$9 -> -1000000 | AO24: =-$M$9 -> -1000000 | AS24: =-$M$9 -> -1000000 | AW24: =-$M$9 -> -1000000 | BA24: =-$M$9 -> -1000000 | BE24: =-$M$9 -> -1000000 | BI24: =-$M$9 -> -1000000 | BM24: =-$M$9 -> -1000000 | BQ24: =-$M$9 -> -1000000 | BU24: =-$M$9 -> -1000000 | BY24: =-$M$9 -> -1000000 | CC24: =-$M$9 -> -1000000 | CG24: =-$M$9 -> -1000000 | CK24: =-$M$9 -> -1000000 | CO24: =-$M$9 -> -1000000 | CS24: =-$M$9 -> -1000000
D25: 8 | E25: =IF(B15>=6,B14+1,B14) -> 2009 | G25: =IF(H25<$I$17,0,G24+1) -> 1 | H25: =DATE(E25,D25,1) -> 2009-08-01 | I25: =I24-J25 -> 953657.7124 | J25: =IF(AND(H25>=$I$17,$P$9>=G25),PMT($P$12,$P$9,-($M$14))-(I24*$P$12),0) -> 46342.28761 | K25: =ROUND(+I24*P12/365*(H25-J14),2) -> 45753.42 | L25: =ROUND(+I24*$P$15/365*(H25-J14),2) -> 9150.68 | M25: =SUM(J25:L25) -> 101246.3876 | N25: 0 | O25: =M25-N25 -> 101246.3876 | P25: =O25 -> 101246.3876 | Q25: =T20 -> 0.05919 | S25: =$M$25 -> 101246.3876 | T25: =U24*$T$20/365*($H$25-$J$14) -> -54162.90411 | U25: =U24+T25+S25 -> -952916.5165 | W25: =$M$25 -> 101246.3876 | X25: =Y24*$X$20/365*($H$25-$I$15) -> -6491129.37 | Y25: =Y24+X25+W25 -> -7389882.982 | AA25: =$M$25 -> 101246.3876 | AB25: =AC24*$AB$20/365*($H$25-$I$15) -> -6491129.37 | AC25: =AC24+AB25+AA25 -> -7389882.982 | AE25: =$M$25 -> 101246.3876 | AF25: =AG24*$AF$20/365*($H$25-$I$15) -> -6491129.37 | AG25: =AG24+AF25+AE25 -> -7389882.982 | AI25: =$M$25 -> 101246.3876 | AJ25: =AK24*$AJ$20/365*($H$25-$I$15) -> -6491129.37 | AK25: =AK24+AJ25+AI25 -> -7389882.982 | AM25: =$M$25 -> 101246.3876 | AN25: =AO24*$AJ$20/365*($H$25-$I$15) -> -6491129.37 | AO25: =AO24+AN25+AM25 -> -7389882.982 | AQ25: =$M$25 -> 101246.3876 | AR25: =AS24*$AB$20/365*($H$25-$I$15) -> -6491129.37 | AS25: =AS24+AR25+AQ25 -> -7389882.982 | AU25: =$M$25 -> 101246.3876 | AV25: =AW24*$AF$20/365*($H$25-$I$15) -> -6491129.37 | AW25: =AW24+AV25+AU25 -> -7389882.982 | AY25: =$M$25 -> 101246.3876 | AZ25: =BA24*$AJ$20/365*($H$25-$I$15) -> -6491129.37 | BA25: =BA24+AZ25+AY25 -> -7389882.982 | BC25: =$M$25 -> 101246.3876 | BD25: =BE24*$AJ$20/365*($H$25-$I$15) -> -6491129.37 | BE25: =BE24+BD25+BC25 -> -7389882.982 | BG25: =$M$25 -> 101246.3876 | BH25: =BI24*$T$20/365*($H$25-$I$15) -> -6490791.616 | BI25: =BI24+BH25+BG25 -> -7389545.229 | BK25: =$M$25 -> 101246.3876 | BL25: =BM24*$X$20/365*($H$25-$I$15) -> -6491129.37 | BM25: =BM24+BL25+BK25 -> -7389882.982 | BO25: =$M$25 -> 101246.3876 | BP25: =BQ24*$AB$20/365*($H$25-$I$15) -> -6491129.37 | BQ25: =BQ24+BP25+BO25 -> -7389882.982 | BS25: =$M$25 -> 101246.3876 | BT25: =BU24*$AF$20/365*($H$25-$I$15) -> -6491129.37 | BU25: =BU24+BT25+BS25 -> -7389882.982 | BW25: =$M$25 -> 101246.3876 | BX25: =BY24*$AJ$20/365*($H$25-$I$15) -> -6491129.37 | BY25: =BY24+BX25+BW25 -> -7389882.982 | CA25: =$M$25 -> 101246.3876 | CB25: =CC24*$AJ$20/365*($H$25-$I$15) -> -6491129.37 | CC25: =CC24+CB25+CA25 -> -7389882.982 | CE25: =$M$25 -> 101246.3876 | CF25: =CG24*$AB$20/365*($H$25-$I$15) -> -6491129.37 | CG25: =CG24+CF25+CE25 -> -7389882.982 | CI25: =$M$25 -> 101246.3876 | CJ25: =CK24*$AF$20/365*($H$25-$I$15) -> -6491129.37 | CK25: =CK24+CJ25+CI25 -> -7389882.982 | CM25: =$M$25 -> 101246.3876 | CN25: =CO24*$AJ$20/365*($H$25-$I$15) -> -6491129.37 | CO25: =CO24+CN25+CM25 -> -7389882.982 | CQ25: =$M$25 -> 101246.3876 | CR25: =CS24*$AJ$20/365*($H$25-$I$15) -> -6491129.37 | CS25: =CS24+CR25+CQ25 -> -7389882.982
D26: 8 | E26: =E25+1 -> 2010 | G26: =IF(H26<$I$17,0,G25+1) -> 2 | H26: =DATE(E26,D26,1) -> 2010-08-01 | I26: =I25-J26 -> 904998.3104 | J26: =IF(AND(H26>=$I$17,$P$9>=G26),PMT($P$12,$P$9,-($M$14))-(I25*$P$12),0) -> 48659.40199 | K26: =ROUND(+I25*$P$12,2) -> 47682.89 | L26: =ROUND(+I25*$P$15,2) -> 9536.58 | M26: =SUM(J26:L26) -> 105878.872 | N26: 0 | O26: =M26-N26 -> 105878.872 | P26: =O26 -> 105878.872 | Q26: =X20 -> 0.05919308 | S26: =$M$26 -> 105878.872 | T26: =U25*$T$20/2 -> -28201.56431 | U26: =U25+T26+S26 -> -875239.2088 | W26: =$M$26-$N$26 -> 105878.872 | X26: =Y25*$X$20/2 -> -218714.9673 | Y26: =Y25+X26+W26 -> -7502719.078 | AA26: =$M$26-$N$26 -> 105878.872 | AB26: =AC25*$AB$20/2 -> -218714.9673 | AC26: =AC25+AB26+AA26 -> -7502719.078 | AE26: =$M$26-$N$26 -> 105878.872 | AF26: =AG25*$AF$20/2 -> -218714.9673 | AG26: =AG25+AF26+AE26 -> -7502719.078 | AI26: =$M$26-$N$26 -> 105878.872 | AJ26: =AK25*$AJ$20/2 -> -218714.9673 | AK26: =AK25+AJ26+AI26 -> -7502719.078 | AM26: =$M$26-$N$26 -> 105878.872 | AN26: =AO25*$AJ$20/2 -> -218714.9673 | AO26: =AO25+AN26+AM26 -> -7502719.078 | AQ26: =$M$26-$N$26 -> 105878.872 | AR26: =AS25*$AB$20/2 -> -218714.9673 | AS26: =AS25+AR26+AQ26 -> -7502719.078 | AU26: =$M$26-$N$26 -> 105878.872 | AV26: =AW25*$AF$20/2 -> -218714.9673 | AW26: =AW25+AV26+AU26 -> -7502719.078 | AY26: =$M$26-$N$26 -> 105878.872 | AZ26: =BA25*$AJ$20/2 -> -218714.9673 | BA26: =BA25+AZ26+AY26 -> -7502719.078 | BC26: =$M$26-$N$26 -> 105878.872 | BD26: =BE25*$AJ$20/2 -> -218714.9673 | BE26: =BE25+BD26+BC26 -> -7502719.078 | BG26: =$M$26-$N$26 -> 105878.872 | BH26: =BI25*$T$20/2 -> -218693.591 | BI26: =BI25+BH26+BG26 -> -7502359.948 | BK26: =$M$26-$N$26 -> 105878.872 | BL26: =BM25*$X$20/2 -> -218714.9673 | BM26: =BM25+BL26+BK26 -> -7502719.078 | BO26: =$M$26-$N$26 -> 105878.872 | BP26: =BQ25*$AB$20/2 -> -218714.9673 | BQ26: =BQ25+BP26+BO26 -> -7502719.078 | BS26: =$M$26-$N$26 -> 105878.872 | BT26: =BU25*$AF$20/2 -> -218714.9673 | BU26: =BU25+BT26+BS26 -> -7502719.078 | BW26: =$M$26-$N$26 -> 105878.872 | BX26: =BY25*$AJ$20/2 -> -218714.9673 | BY26: =BY25+BX26+BW26 -> -7502719.078 | CA26: =$M$26-$N$26 -> 105878.872 | CB26: =CC25*$AJ$20/2 -> -218714.9673 | CC26: =CC25+CB26+CA26 -> -7502719.078 | CE26: =$M$26-$N$26 -> 105878.872 | CF26: =CG25*$AB$20/2 -> -218714.9673 | CG26: =CG25+CF26+CE26 -> -7502719.078 | CI26: =$M$26-$N$26 -> 105878.872 | CJ26: =CK25*$AF$20/2 -> -218714.9673 | CK26: =CK25+CJ26+CI26 -> -7502719.078 | CM26: =$M$26-$N$26 -> 105878.872 | CN26: =CO25*$AJ$20/2 -> -218714.9673 | CO26: =CO25+CN26+CM26 -> -7502719.078 | CQ26: =$M$26-$N$26 -> 105878.872 | CR26: =CS25*$AJ$20/2 -> -218714.9673 | CS26: =CS25+CR26+CQ26 -> -7502719.078
D27: 8 | E27: =E26+1 -> 2011 | G27: =IF(H27<$I$17,0,G26+1) -> 3 | H27: =DATE(E27,D27,1) -> 2011-08-01 | I27: =I26-J27 -> 853905.9383 | J27: 51092.37209 | K27: =ROUND(+I26*$P$12,2) -> 45249.92 | L27: =ROUND(+I26*$P$15,2) -> 9049.98 | M27: =SUM(J27:L27) -> 105392.2721 | N27: 0 | O27: =M27-N27 -> 105392.2721 | P27: =O27 -> 105392.2721 | Q27: =AB20 -> 0.05919308 | S27: =$M$27 -> 105392.2721 | T27: =U26*$T$20/2 -> -25902.70438 | U27: =U26+T27+S27 -> -795749.6411 | W27: =$M$27 -> 105392.2721 | X27: =Y26*$X$20/2 -> -222054.5253 | Y27: =Y26+X27+W27 -> -7619381.331 | AA27: =$M$27-$N$27 -> 105392.2721 | AB27: =AC26*$AB$20/2 -> -222054.5253 | AC27: =AC26+AB27+AA27 -> -7619381.331 | AE27: =$M$27-$N$27 -> 105392.2721 | AF27: =AG26*$AF$20/2 -> -222054.5253 | AG27: =AG26+AF27+AE27 -> -7619381.331 | AI27: =$M$27-$N$27 -> 105392.2721 | AJ27: =AK26*$AJ$20/2 -> -222054.5253 | AK27: =AK26+AJ27+AI27 -> -7619381.331 | AM27: =$M$27-$N$27 -> 105392.2721 | AN27: =AO26*$AJ$20/2 -> -222054.5253 | AO27: =AO26+AN27+AM27 -> -7619381.331 | AQ27: =$M$27-$N$27 -> 105392.2721 | AR27: =AS26*$AB$20/2 -> -222054.5253 | AS27: =AS26+AR27+AQ27 -> -7619381.331 | AU27: =$M$27-$N$27 -> 105392.2721 | AV27: =AW26*$AF$20/2 -> -222054.5253 | AW27: =AW26+AV27+AU27 -> -7619381.331 | AY27: =$M$27-$N$27 -> 105392.2721 | AZ27: =BA26*$AJ$20/2 -> -222054.5253 | BA27: =BA26+AZ27+AY27 -> -7619381.331 | BC27: =$M$27-$N$27 -> 105392.2721 | BD27: =BE26*$AJ$20/2 -> -222054.5253 | BE27: =BE26+BD27+BC27 -> -7619381.331 | BG27: =$M$27-$N$27 -> 105392.2721 | BH27: =BI26*$T$20/2 -> -222032.3427 | BI27: =BI26+BH27+BG27 -> -7619000.018 | BK27: =$M$27-$N$27 -> 105392.2721 | BL27: =BM26*$X$20/2 -> -222054.5253 | BM27: =BM26+BL27+BK27 -> -7619381.331 | BO27: =$M$27-$N$27 -> 105392.2721 | BP27: =BQ26*$AB$20/2 -> -222054.5253 | BQ27: =BQ26+BP27+BO27 -> -7619381.331 | BS27: =$M$27-$N$27 -> 105392.2721 | BT27: =BU26*$AF$20/2 -> -222054.5253 | BU27: =BU26+BT27+BS27 -> -7619381.331 | BW27: =$M$27-$N$27 -> 105392.2721 | BX27: =BY26*$AJ$20/2 -> -222054.5253 | BY27: =BY26+BX27+BW27 -> -7619381.331 | CA27: =$M$27-$N$27 -> 105392.2721 | CB27: =CC26*$AJ$20/2 -> -222054.5253 | CC27: =CC26+CB27+CA27 -> -7619381.331 | CE27: =$M$27-$N$27 -> 105392.2721 | CF27: =CG26*$AB$20/2 -> -222054.5253 | CG27: =CG26+CF27+CE27 -> -7619381.331 | CI27: =$M$27-$N$27 -> 105392.2721 | CJ27: =CK26*$AF$20/2 -> -222054.5253 | CK27: =CK26+CJ27+CI27 -> -7619381.331 | CM27: =$M$27-$N$27 -> 105392.2721 | CN27: =CO26*$AJ$20/2 -> -222054.5253 | CO27: =CO26+CN27+CM27 -> -7619381.331 | CQ27: =$M$27-$N$27 -> 105392.2721 | CR27: =CS26*$AJ$20/2 -> -222054.5253 | CS27: =CS26+CR27+CQ27 -> -7619381.331
D28: 8 | E28: =E27+1 -> 2012 | G28: =IF(H28<$I$17,0,G27+1) -> 4 | H28: =DATE(E28,D28,1) -> 2012-08-01 | I28: =I27-J28 -> 800258.9476 | J28: 53646.99069 | K28: =ROUND(+I27*$P$12,2) -> 42695.3 | L28: =ROUND(+I27*$P$15,2) -> 8539.06 | M28: =SUM(J28:L28) -> 104881.3507 | N28: 0 | O28: =M28-N28 -> 104881.3507 | P28: =O28 -> 104881.3507 | Q28: =AB21 -> 0 | S28: =$M$27 -> 105392.2721 | T28: =U27*$T$20/2 -> -23550.21063 | U28: =U27+T28+S28 -> -713907.5797 | W28: =$M$27 -> 105392.2721 | X28: =Y27*$X$20/2 -> -225507.3243 | Y28: =Y27+X28+W28 -> -7739496.383 | AA28: =$M$27-$N$27 -> 105392.2721 | AB28: =AC27*$AB$20/2 -> -225507.3243 | AC28: =AC27+AB28+AA28 -> -7739496.383 | AE28: =$M$27-$N$27 -> 105392.2721 | AF28: =AG27*$AF$20/2 -> -225507.3243 | AG28: =AG27+AF28+AE28 -> -7739496.383 | AI28: =$M$27-$N$27 -> 105392.2721 | AJ28: =AK27*$AJ$20/2 -> -225507.3243 | AK28: =AK27+AJ28+AI28 -> -7739496.383 | AM28: =$M$27-$N$27 -> 105392.2721 | AN28: =AO27*$AJ$20/2 -> -225507.3243 | AO28: =AO27+AN28+AM28 -> -7739496.383 | AQ28: =$M$27-$N$27 -> 105392.2721 | AR28: =AS27*$AB$20/2 -> -225507.3243 | AS28: =AS27+AR28+AQ28 -> -7739496.383 | AU28: =$M$27-$N$27 -> 105392.2721 | AV28: =AW27*$AF$20/2 -> -225507.3243 | AW28: =AW27+AV28+AU28 -> -7739496.383 | AY28: =$M$27-$N$27 -> 105392.2721 | AZ28: =BA27*$AJ$20/2 -> -225507.3243 | BA28: =BA27+AZ28+AY28 -> -7739496.383 | BC28: =$M$27-$N$27 -> 105392.2721 | BD28: =BE27*$AJ$20/2 -> -225507.3243 | BE28: =BE27+BD28+BC28 -> -7739496.383 | BG28: =$M$27-$N$27 -> 105392.2721 | BH28: =BI27*$T$20/2 -> -225484.3055 | BI28: =BI27+BH28+BG28 -> -7739092.052 | BK28: =$M$27-$N$27 -> 105392.2721 | BL28: =BM27*$X$20/2 -> -225507.3243 | BM28: =BM27+BL28+BK28 -> -7739496.383 | BO28: =$M$27-$N$27 -> 105392.2721 | BP28: =BQ27*$AB$20/2 -> -225507.3243 | BQ28: =BQ27+BP28+BO28 -> -7739496.383 | BS28: =$M$27-$N$27 -> 105392.2721 | BT28: =BU27*$AF$20/2 -> -225507.3243 | BU28: =BU27+BT28+BS28 -> -7739496.383 | BW28: =$M$27-$N$27 -> 105392.2721 | BX28: =BY27*$AJ$20/2 -> -225507.3243 | BY28: =BY27+BX28+BW28 -> -7739496.383 | CA28: =$M$27-$N$27 -> 105392.2721 | CB28: =CC27*$AJ$20/2 -> -225507.3243 | CC28: =CC27+CB28+CA28 -> -7739496.383 | CE28: =$M$27-$N$27 -> 105392.2721 | CF28: =CG27*$AB$20/2 -> -225507.3243 | CG28: =CG27+CF28+CE28 -> -7739496.383 | CI28: =$M$27-$N$27 -> 105392.2721 | CJ28: =CK27*$AF$20/2 -> -225507.3243 | CK28: =CK27+CJ28+CI28 -> -7739496.383 | CM28: =$M$27-$N$27 -> 105392.2721 | CN28: =CO27*$AJ$20/2 -> -225507.3243 | CO28: =CO27+CN28+CM28 -> -7739496.383 | CQ28: =$M$27-$N$27 -> 105392.2721 | CR28: =CS27*$AJ$20/2 -> -225507.3243 | CS28: =CS27+CR28+CQ28 -> -7739496.383
D29: 8 | E29: 2013 | G29: 5 | H29: 2013-08-01 | I29: 743929.6074 | J29: 56329.34023 | K29: 40012.95 | L29: 8002.59 | M29: 104344.8802 | N29: 0 | O29: 104344.8802 | P29: 104344.8802 | Q29: INTEREST | S29: 105392.2721 | T29: -21128.09482 | U29: -629643.4024 | W29: 105392.2721 | X29: -229062.3143 | Y29: -7863166.425 | AA29: 105392.2721 | AB29: -229062.3143 | AC29: -7863166.425 | AE29: 105392.2721 | AF29: -229062.3143 | AG29: -7863166.425 | AI29: 105392.2721 | AJ29: -229062.3143 | AK29: -7863166.425 | AM29: 105392.2721 | AN29: -229062.3143 | AO29: -7863166.425 | AQ29: 105392.2721 | AR29: -229062.3143 | AS29: -7863166.425 | AU29: 105392.2721 | AV29: -229062.3143 | AW29: -7863166.425 | AY29: 105392.2721 | AZ29: -229062.3143 | BA29: -7863166.425 | BC29: 105392.2721 | BD29: -229062.3143 | BE29: -7863166.425 | BG29: 105392.2721 | BH29: -229038.4293 | BI29: -7862738.209 | BK29: 105392.2721 | BL29: -229062.3143 | BM29: -7863166.425 | BO29: 105392.2721 | BP29: -229062.3143 | BQ29: -7863166.425 | BS29: 105392.2721 | BT29: -229062.3143 | BU29: -7863166.425 | BW29: 105392.2721 | BX29: -229062.3143 | BY29: -7863166.425 | CA29: 105392.2721 | CB29: -229062.3143 | CC29: -7863166.425 | CE29: 105392.2721 | CF29: -229062.3143 | CG29: -7863166.425 | CI29: 105392.2721 | CJ29: -229062.3143 | CK29: -7863166.425 | CM29: 105392.2721 | CN29: -229062.3143 | CO29: -7863166.425 | CQ29: 105392.2721 | CR29: -229062.3143 | CS29: -7863166.425
D30: 8 | E30: 2014 | G30: 6 | H30: 2014-08-01 | I30: 684783.8002 | J30: 59145.80724 | K30: 37196.48 | L30: 7439.3 | M30: 103781.5872 | N30: 0 | O30: 103781.5872 | P30: 103781.5872 | Q30: 0 | S30: 105392.2721 | T30: -18634.29649 | U30: -542885.4268 | W30: 105392.2721 | X30: -232722.5196 | Y30: -7990496.673 | AA30: 105392.2721 | AB30: -232722.5196 | AC30: -7990496.673 | AE30: 105392.2721 | AF30: -232722.5196 | AG30: -7990496.673 | AI30: 105392.2721 | AJ30: -232722.5196 | AK30: -7990496.673 | AM30: 105392.2721 | AN30: -232722.5196 | AO30: -7990496.673 | AQ30: 105392.2721 | AR30: -232722.5196 | AS30: -7990496.673 | AU30: 105392.2721 | AV30: -232722.5196 | AW30: -7990496.673 | AY30: 105392.2721 | AZ30: -232722.5196 | BA30: -7990496.673 | BC30: 105392.2721 | BD30: -232722.5196 | BE30: -7990496.673 | BG30: 105392.2721 | BH30: -232697.7373 | BI30: -7990043.674 | BK30: 105392.2721 | BL30: -232722.5196 | BM30: -7990496.673 | BO30: 105392.2721 | BP30: -232722.5196 | BQ30: -7990496.673 | BS30: 105392.2721 | BT30: -232722.5196 | BU30: -7990496.673 | BW30: 105392.2721 | BX30: -232722.5196 | BY30: -7990496.673 | CA30: 105392.2721 | CB30: -232722.5196 | CC30: -7990496.673 | CE30: 105392.2721 | CF30: -232722.5196 | CG30: -7990496.673 | CI30: 105392.2721 | CJ30: -232722.5196 | CK30: -7990496.673 | CM30: 105392.2721 | CN30: -232722.5196 | CO30: -7990496.673 | CQ30: 105392.2721 | CR30: -232722.5196 | CS30: -7990496.673
D31: 8 | E31: 2015 | G31: 7 | H31: 2015-08-01 | I31: 622680.7025 | J31: 62103.0976 | K31: 34239.19 | L31: 6847.84 | M31: 103190.1276 | N31: 0 | O31: 103190.1276 | P31: 103190.1276 | Q31: 0 | S31: 105392.2721 | T31: -16066.69421 | U31: -453559.8489 | W31: 105392.2721 | X31: -236491.0544 | Y31: -8121595.455 | AA31: 105392.2721 | AB31: -236491.0544 | AC31: -8121595.455 | AE31: 105392.2721 | AF31: -236491.0544 | AG31: -8121595.455 | AI31: 105392.2721 | AJ31: -236491.0544 | AK31: -8121595.455 | AM31: 105392.2721 | AN31: -236491.0544 | AO31: -8121595.455 | AQ31: 105392.2721 | AR31: -236491.0544 | AS31: -8121595.455 | AU31: 105392.2721 | AV31: -236491.0544 | AW31: -8121595.455 | AY31: 105392.2721 | AZ31: -236491.0544 | BA31: -8121595.455 | BC31: 105392.2721 | BD31: -236491.0544 | BE31: -8121595.455 | BG31: 105392.2721 | BH31: -236465.3425 | BI31: -8121116.745 | BK31: 105392.2721 | BL31: -236491.0544 | BM31: -8121595.455 | BO31: 105392.2721 | BP31: -236491.0544 | BQ31: -8121595.455 | BS31: 105392.2721 | BT31: -236491.0544 | BU31: -8121595.455 | BW31: 105392.2721 | BX31: -236491.0544 | BY31: -8121595.455 | CA31: 105392.2721 | CB31: -236491.0544 | CC31: -8121595.455 | CE31: 105392.2721 | CF31: -236491.0544 | CG31: -8121595.455 | CI31: 105392.2721 | CJ31: -236491.0544 | CK31: -8121595.455 | CM31: 105392.2721 | CN31: -236491.0544 | CO31: -8121595.455 | CQ31: 105392.2721 | CR31: -236491.0544 | CS31: -8121595.455
D32: 8 | E32: 2016 | G32: 8 | H32: 2016-08-01 | I32: 557472.4501 | J32: 65208.25248 | K32: 31134.04 | L32: 6226.81 | M32: 102569.1025 | N32: 0 | O32: 102569.1025 | P32: 102569.1025 | Q32: -6491129.37 | S32: 105392.2721 | T32: -13423.10373 | U32: -361590.6805 | W32: 105392.2721 | X32: -240371.1248 | Y32: -8256574.308 | AA32: 105392.2721 | AB32: -240371.1248 | AC32: -8256574.308 | AE32: 105392.2721 | AF32: -240371.1248 | AG32: -8256574.308 | AI32: 105392.2721 | AJ32: -240371.1248 | AK32: -8256574.308 | AM32: 105392.2721 | AN32: -240371.1248 | AO32: -8256574.308 | AQ32: 105392.2721 | AR32: -240371.1248 | AS32: -8256574.308 | AU32: 105392.2721 | AV32: -240371.1248 | AW32: -8256574.308 | AY32: 105392.2721 | AZ32: -240371.1248 | BA32: -8256574.308 | BC32: 105392.2721 | BD32: -240371.1248 | BE32: -8256574.308 | BG32: 105392.2721 | BH32: -240344.4501 | BI32: -8256068.923 | BK32: 105392.2721 | BL32: -240371.1248 | BM32: -8256574.308 | BO32: 105392.2721 | BP32: -240371.1248 | BQ32: -8256574.308 | BS32: 105392.2721 | BT32: -240371.1248 | BU32: -8256574.308 | BW32: 105392.2721 | BX32: -240371.1248 | BY32: -8256574.308 | CA32: 105392.2721 | CB32: -240371.1248 | CC32: -8256574.308 | CE32: 105392.2721 | CF32: -240371.1248 | CG32: -8256574.308 | CI32: 105392.2721 | CJ32: -240371.1248 | CK32: -8256574.308 | CM32: 105392.2721 | CN32: -240371.1248 | CO32: -8256574.308 | CQ32: 105392.2721 | CR32: -240371.1248 | CS32: -8256574.308
D33: 8 | E33: 2017 | G33: 9 | H33: 2017-08-01 | I33: 489003.785 | J33: 68468.66511 | K33: 27873.62 | L33: 5574.72 | M33: 101917.0051 | N33: 0 | O33: 101917.0051 | P33: 101917.0051 | Q33: -218714.9673 | S33: 105392.2721 | T33: -10701.27619 | U33: -266899.6846 | W33: 105392.2721 | X33: -244366.0318 | Y33: -8395548.068 | AA33: 105392.2721 | AB33: -244366.0318 | AC33: -8395548.068 | AE33: 105392.2721 | AF33: -244366.0318 | AG33: -8395548.068 | AI33: 105392.2721 | AJ33: -244366.0318 | AK33: -8395548.068 | AM33: 105392.2721 | AN33: -244366.0318 | AO33: -8395548.068 | AQ33: 105392.2721 | AR33: -244366.0318 | AS33: -8395548.068 | AU33: 105392.2721 | AV33: -244366.0318 | AW33: -8395548.068 | AY33: 105392.2721 | AZ33: -244366.0318 | BA33: -8395548.068 | BC33: 105392.2721 | BD33: -244366.0318 | BE33: -8395548.068 | BG33: 105392.2721 | BH33: -244338.3598 | BI33: -8395015.01 | BK33: 105392.2721 | BL33: -244366.0318 | BM33: -8395548.068 | BO33: 105392.2721 | BP33: -244366.0318 | BQ33: -8395548.068 | BS33: 105392.2721 | BT33: -244366.0318 | BU33: -8395548.068 | BW33: 105392.2721 | BX33: -244366.0318 | BY33: -8395548.068 | CA33: 105392.2721 | CB33: -244366.0318 | CC33: -8395548.068 | CE33: 105392.2721 | CF33: -244366.0318 | CG33: -8395548.068 | CI33: 105392.2721 | CJ33: -244366.0318 | CK33: -8395548.068 | CM33: 105392.2721 | CN33: -244366.0318 | CO33: -8395548.068 | CQ33: 105392.2721 | CR33: -244366.0318 | CS33: -8395548.068
D34: 8 | E34: 2018 | G34: 10 | H34: 2018-08-01 | I34: 417111.6866 | J34: 71892.09836 | K34: 24450.19 | L34: 4890.04 | M34: 101232.3284 | N34: 0 | O34: 101232.3284 | P34: 101232.3284 | Q34: -222054.5253 | S34: 105392.2721 | T34: -7898.896167 | U34: -169406.3087 | W34: 105392.2721 | X34: -248479.1742 | Y34: -8538634.97 | AA34: 105392.2721 | AB34: -248479.1742 | AC34: -8538634.97 | AE34: 105392.2721 | AF34: -248479.1742 | AG34: -8538634.97 | AI34: 105392.2721 | AJ34: -248479.1742 | AK34: -8538634.97 | AM34: 105392.2721 | AN34: -248479.1742 | AO34: -8538634.97 | AQ34: 105392.2721 | AR34: -248479.1742 | AS34: -8538634.97 | AU34: 105392.2721 | AV34: -248479.1742 | AW34: -8538634.97 | AY34: 105392.2721 | AZ34: -248479.1742 | BA34: -8538634.97 | BC34: 105392.2721 | BD34: -248479.1742 | BE34: -8538634.97 | BG34: 105392.2721 | BH34: -248450.4692 | BI34: -8538073.208 | BK34: 105392.2721 | BL34: -248479.1742 | BM34: -8538634.97 | BO34: 105392.2721 | BP34: -248479.1742 | BQ34: -8538634.97 | BS34: 105392.2721 | BT34: -248479.1742 | BU34: -8538634.97 | BW34: 105392.2721 | BX34: -248479.1742 | BY34: -8538634.97 | CA34: 105392.2721 | CB34: -248479.1742 | CC34: -8538634.97 | CE34: 105392.2721 | CF34: -248479.1742 | CG34: -8538634.97 | CI34: 105392.2721 | CJ34: -248479.1742 | CK34: -8538634.97 | CM34: 105392.2721 | CN34: -248479.1742 | CO34: -8538634.97 | CQ34: 105392.2721 | CR34: -248479.1742 | CS34: -8538634.97
D35: 8 | E35: =E34+1 -> 2019 | G35: =IF(H35<$I$17,0,G34+1) -> 11 | H35: =DATE(E35,D35,1) -> 2019-08-01 | I35: =I34-J35 -> 341624.9833 | J35: 75486.70328 | K35: =ROUND(+I34*$P$12,2) -> 20855.58 | L35: =ROUND(+I34*$P$15,2) -> 4171.12 | M35: =SUM(J35:L35) -> 100513.4033 | N35: 0 | O35: =M35-N35 -> 100513.4033 | P35: 100513.4033 | Q35: =AB28 -> -225507.3243 | S35: 105392.2721 | T35: =U34*$T$20/2 -> -5013.579707 | U35: =U34+T35+S35 -> -69027.61634 | W35: 105392.2721 | X35: =Y34*$X$20/2 -> -252714.0514 | Y35: =Y34+X35+W35 -> -8685956.749 | AA35: 105392.2721 | AB35: =AC34*$AB$20/2 -> -252714.0514 | AC35: =AC34+AB35+AA35 -> -8685956.749 | AE35: 105392.2721 | AF35: =AG34*$AF$20/2 -> -252714.0514 | AG35: =AG34+AF35+AE35 -> -8685956.749 | AI35: 105392.2721 | AJ35: =AK34*$AJ$20/2 -> -252714.0514 | AK35: =AK34+AJ35+AI35 -> -8685956.749 | AM35: 105392.2721 | AN35: =AO34*$AJ$20/2 -> -252714.0514 | AO35: =AO34+AN35+AM35 -> -8685956.749 | AQ35: 105392.2721 | AR35: =AS34*$AB$20/2 -> -252714.0514 | AS35: =AS34+AR35+AQ35 -> -8685956.749 | AU35: 105392.2721 | AV35: =AW34*$AF$20/2 -> -252714.0514 | AW35: =AW34+AV35+AU35 -> -8685956.749 | AY35: 105392.2721 | AZ35: =BA34*$AJ$20/2 -> -252714.0514 | BA35: =BA34+AZ35+AY35 -> -8685956.749 | BC35: 105392.2721 | BD35: =BE34*$AJ$20/2 -> -252714.0514 | BE35: =BE34+BD35+BC35 -> -8685956.749 | BG35: 105392.2721 | BH35: =BI34*$T$20/2 -> -252684.2766 | BI35: =BI34+BH35+BG35 -> -8685365.212 | BK35: 105392.2721 | BL35: =BM34*$X$20/2 -> -252714.0514 | BM35: =BM34+BL35+BK35 -> -8685956.749 | BO35: 105392.2721 | BP35: =BQ34*$AB$20/2 -> -252714.0514 | BQ35: =BQ34+BP35+BO35 -> -8685956.749 | BS35: 105392.2721 | BT35: =BU34*$AF$20/2 -> -252714.0514 | BU35: =BU34+BT35+BS35 -> -8685956.749 | BW35: 105392.2721 | BX35: =BY34*$AJ$20/2 -> -252714.0514 | BY35: =BY34+BX35+BW35 -> -8685956.749 | CA35: 105392.2721 | CB35: =CC34*$AJ$20/2 -> -252714.0514 | CC35: =CC34+CB35+CA35 -> -8685956.749 | CE35: 105392.2721 | CF35: =CG34*$AB$20/2 -> -252714.0514 | CG35: =CG34+CF35+CE35 -> -8685956.749 | CI35: 105392.2721 | CJ35: =CK34*$AF$20/2 -> -252714.0514 | CK35: =CK34+CJ35+CI35 -> -8685956.749 | CM35: 105392.2721 | CN35: =CO34*$AJ$20/2 -> -252714.0514 | CO35: =CO34+CN35+CM35 -> -8685956.749 | CQ35: 105392.2721 | CR35: =CS34*$AJ$20/2 -> -252714.0514 | CS35: =CS34+CR35+CQ35 -> -8685956.749
D36: 8 | E36: 2020 | G36: 12 | H36: 2020-08-01 | I36: 262363.9449 | J36: 79261.03844 | K36: 17081.25 | L36: 3416.25 | M36: 99758.53844 | N36: 0 | O36: 99758.53844 | P36: 99758.53844 | Q36: -229062.3143 | S36: 105392.2721 | T36: -2042.872306 | U36: 34321.78344 | W36: 105392.2721 | X36: -257074.2664 | Y36: -8837638.743 | AA36: 105392.2721 | AB36: -257074.2664 | AC36: -8837638.743 | AE36: 105392.2721 | AF36: -257074.2664 | AG36: -8837638.743 | AI36: 105392.2721 | AJ36: -257074.2664 | AK36: -8837638.743 | AM36: 105392.2721 | AN36: -257074.2664 | AO36: -8837638.743 | AQ36: 105392.2721 | AR36: -257074.2664 | AS36: -8837638.743 | AU36: 105392.2721 | AV36: -257074.2664 | AW36: -8837638.743 | AY36: 105392.2721 | AZ36: -257074.2664 | BA36: -8837638.743 | BC36: 105392.2721 | BD36: -257074.2664 | BE36: -8837638.743 | BG36: 105392.2721 | BH36: -257043.3835 | BI36: -8837016.323 | BK36: 105392.2721 | BL36: -257074.2664 | BM36: -8837638.743 | BO36: 105392.2721 | BP36: -257074.2664 | BQ36: -8837638.743 | BS36: 105392.2721 | BT36: -257074.2664 | BU36: -8837638.743 | BW36: 105392.2721 | BX36: -257074.2664 | BY36: -8837638.743 | CA36: 105392.2721 | CB36: -257074.2664 | CC36: -8837638.743 | CE36: 105392.2721 | CF36: -257074.2664 | CG36: -8837638.743 | CI36: 105392.2721 | CJ36: -257074.2664 | CK36: -8837638.743 | CM36: 105392.2721 | CN36: -257074.2664 | CO36: -8837638.743 | CQ36: 105392.2721 | CR36: -257074.2664 | CS36: -8837638.743
D37: 8 | E37: 2021 | G37: 13 | H37: 2021-08-01 | I37: 179139.8545 | J37: 83224.09037 | K37: 13118.2 | L37: 2623.64 | M37: 98965.93037 | N37: 0 | O37: 98965.93037 | P37: 98965.93037 | Q37: -232722.5196 | S37: 105392.2721 | T37: 1015.753181 | U37: 140729.8087 | W37: 105392.2721 | X37: -261563.5286 | Y37: -8993810 | AA37: 105392.2721 | AB37: -261563.5286 | AC37: -8993810 | AE37: 105392.2721 | AF37: -261563.5286 | AG37: -8993810 | AI37: 105392.2721 | AJ37: -261563.5286 | AK37: -8993810 | AM37: 105392.2721 | AN37: -261563.5286 | AO37: -8993810 | AQ37: 105392.2721 | AR37: -261563.5286 | AS37: -8993810 | AU37: 105392.2721 | AV37: -261563.5286 | AW37: -8993810 | AY37: 105392.2721 | AZ37: -261563.5286 | BA37: -8993810 | BC37: 105392.2721 | BD37: -261563.5286 | BE37: -8993810 | BG37: 105392.2721 | BH37: -261531.4981 | BI37: -8993155.549 | BK37: 105392.2721 | BL37: -261563.5286 | BM37: -8993810 | BO37: 105392.2721 | BP37: -261563.5286 | BQ37: -8993810 | BS37: 105392.2721 | BT37: -261563.5286 | BU37: -8993810 | BW37: 105392.2721 | BX37: -261563.5286 | BY37: -8993810 | CA37: 105392.2721 | CB37: -261563.5286 | CC37: -8993810 | CE37: 105392.2721 | CF37: -261563.5286 | CG37: -8993810 | CI37: 105392.2721 | CJ37: -261563.5286 | CK37: -8993810 | CM37: 105392.2721 | CN37: -261563.5286 | CO37: -8993810 | CQ37: 105392.2721 | CR37: -261563.5286 | CS37: -8993810
D38: 8 | E38: 2022 | G38: 14 | H38: 2022-08-01 | I38: 91754.55963 | J38: 87385.29488 | K38: 8956.99 | L38: 1791.4 | M38: 98133.68488 | N38: 0 | O38: 98133.68488 | P38: 98133.68488 | Q38: -236491.0544 | S38: 105392.2721 | T38: 4164.898689 | U38: 250286.9795 | W38: 105392.2721 | X38: -266185.6574 | Y38: -9154603.385 | AA38: 105392.2721 | AB38: -266185.6574 | AC38: -9154603.385 | AE38: 105392.2721 | AF38: -266185.6574 | AG38: -9154603.385 | AI38: 105392.2721 | AJ38: -266185.6574 | AK38: -9154603.385 | AM38: 105392.2721 | AN38: -266185.6574 | AO38: -9154603.385 | AQ38: 105392.2721 | AR38: -266185.6574 | AS38: -9154603.385 | AU38: 105392.2721 | AV38: -266185.6574 | AW38: -9154603.385 | AY38: 105392.2721 | AZ38: -266185.6574 | BA38: -9154603.385 | BC38: 105392.2721 | BD38: -266185.6574 | BE38: -9154603.385 | BG38: 105392.2721 | BH38: -266152.4385 | BI38: -9153915.716 | BK38: 105392.2721 | BL38: -266185.6574 | BM38: -9154603.385 | BO38: 105392.2721 | BP38: -266185.6574 | BQ38: -9154603.385 | BS38: 105392.2721 | BT38: -266185.6574 | BU38: -9154603.385 | BW38: 105392.2721 | BX38: -266185.6574 | BY38: -9154603.385 | CA38: 105392.2721 | CB38: -266185.6574 | CC38: -9154603.385 | CE38: 105392.2721 | CF38: -266185.6574 | CG38: -9154603.385 | CI38: 105392.2721 | CJ38: -266185.6574 | CK38: -9154603.385 | CM38: 105392.2721 | CN38: -266185.6574 | CO38: -9154603.385 | CQ38: 105392.2721 | CR38: -266185.6574 | CS38: -9154603.385
D39: 8 | E39: 2023 | G39: 15 | H39: 2023-08-01 | I39: 5.384208634e-10 | J39: 91754.55963 | K39: 4587.73 | L39: 917.55 | M39: 97259.83963 | N39: 0 | O39: 97259.83963 | P39: 97259.83963 | Q39: -240371.1248 | S39: 105392.2721 | T39: 7407.243158 | U39: 363086.4947 | W39: 105392.2721 | X39: -270944.5853 | Y39: -9320155.698 | AA39: 105392.2721 | AB39: -270944.5853 | AC39: -9320155.698 | AE39: 105392.2721 | AF39: -270944.5853 | AG39: -9320155.698 | AI39: 105392.2721 | AJ39: -270944.5853 | AK39: -9320155.698 | AM39: 105392.2721 | AN39: -270944.5853 | AO39: -9320155.698 | AQ39: 105392.2721 | AR39: -270944.5853 | AS39: -9320155.698 | AU39: 105392.2721 | AV39: -270944.5853 | AW39: -9320155.698 | AY39: 105392.2721 | AZ39: -270944.5853 | BA39: -9320155.698 | BC39: 105392.2721 | BD39: -270944.5853 | BE39: -9320155.698 | BG39: 105392.2721 | BH39: -270910.1356 | BI39: -9319433.579 | BK39: 105392.2721 | BL39: -270944.5853 | BM39: -9320155.698 | BO39: 105392.2721 | BP39: -270944.5853 | BQ39: -9320155.698 | BS39: 105392.2721 | BT39: -270944.5853 | BU39: -9320155.698 | BW39: 105392.2721 | BX39: -270944.5853 | BY39: -9320155.698 | CA39: 105392.2721 | CB39: -270944.5853 | CC39: -9320155.698 | CE39: 105392.2721 | CF39: -270944.5853 | CG39: -9320155.698 | CI39: 105392.2721 | CJ39: -270944.5853 | CK39: -9320155.698 | CM39: 105392.2721 | CN39: -270944.5853 | CO39: -9320155.698 | CQ39: 105392.2721 | CR39: -270944.5853 | CS39: -9320155.698
D40: 8 | E40: 2024 | G40: 16 | H40: 2024-08-01 | I40: 5.384208634e-10 | J40: 0 | K40: 0 | L40: 0 | M40: 0 | N40: 0 | O40: 0 | P40: 0 | Q40: -244366.0318 | S40: 105392.2721 | T40: 10745.54481 | U40: 479224.3116 | W40: 105392.2721 | X40: -275844.3609 | Y40: -9490607.787 | AA40: 105392.2721 | AB40: -275844.3609 | AC40: -9490607.787 | AE40: 105392.2721 | AF40: -275844.3609 | AG40: -9490607.787 | AI40: 105392.2721 | AJ40: -275844.3609 | AK40: -9490607.787 | AM40: 105392.2721 | AN40: -275844.3609 | AO40: -9490607.787 | AQ40: 105392.2721 | AR40: -275844.3609 | AS40: -9490607.787 | AU40: 105392.2721 | AV40: -275844.3609 | AW40: -9490607.787 | AY40: 105392.2721 | AZ40: -275844.3609 | BA40: -9490607.787 | BC40: 105392.2721 | BD40: -275844.3609 | BE40: -9490607.787 | BG40: 105392.2721 | BH40: -275808.6368 | BI40: -9489849.944 | BK40: 105392.2721 | BL40: -275844.3609 | BM40: -9490607.787 | BO40: 105392.2721 | BP40: -275844.3609 | BQ40: -9490607.787 | BS40: 105392.2721 | BT40: -275844.3609 | BU40: -9490607.787 | BW40: 105392.2721 | BX40: -275844.3609 | BY40: -9490607.787 | CA40: 105392.2721 | CB40: -275844.3609 | CC40: -9490607.787 | CE40: 105392.2721 | CF40: -275844.3609 | CG40: -9490607.787 | CI40: 105392.2721 | CJ40: -275844.3609 | CK40: -9490607.787 | CM40: 105392.2721 | CN40: -275844.3609 | CO40: -9490607.787 | CQ40: 105392.2721 | CR40: -275844.3609 | CS40: -9490607.787
D41: 8 | E41: 2025 | G41: 17 | H41: 2025-08-01 | I41: 5.384208634e-10 | J41: 0 | K41: 0 | L41: 0 | M41: 0 | N41: 0 | O41: 0 | P41: 0 | Q41: -248479.1742 | S41: 105392.2721 | T41: 14182.6435 | U41: 598799.2272 | W41: 105392.2721 | X41: -280889.153 | Y41: -9666104.668 | AA41: 105392.2721 | AB41: -280889.153 | AC41: -9666104.668 | AE41: 105392.2721 | AF41: -280889.153 | AG41: -9666104.668 | AI41: 105392.2721 | AJ41: -280889.153 | AK41: -9666104.668 | AM41: 105392.2721 | AN41: -280889.153 | AO41: -9666104.668 | AQ41: 105392.2721 | AR41: -280889.153 | AS41: -9666104.668 | AU41: 105392.2721 | AV41: -280889.153 | AW41: -9666104.668 | AY41: 105392.2721 | AZ41: -280889.153 | BA41: -9666104.668 | BC41: 105392.2721 | BD41: -280889.153 | BE41: -9666104.668 | BG41: 105392.2721 | BH41: -280852.1091 | BI41: -9665309.781 | BK41: 105392.2721 | BL41: -280889.153 | BM41: -9666104.668 | BO41: 105392.2721 | BP41: -280889.153 | BQ41: -9666104.668 | BS41: 105392.2721 | BT41: -280889.153 | BU41: -9666104.668 | BW41: 105392.2721 | BX41: -280889.153 | BY41: -9666104.668 | CA41: 105392.2721 | CB41: -280889.153 | CC41: -9666104.668 | CE41: 105392.2721 | CF41: -280889.153 | CG41: -9666104.668 | CI41: 105392.2721 | CJ41: -280889.153 | CK41: -9666104.668 | CM41: 105392.2721 | CN41: -280889.153 | CO41: -9666104.668 | CQ41: 105392.2721 | CR41: -280889.153 | CS41: -9666104.668
D42: 8 | E42: 2026 | G42: 18 | H42: 2026-08-01 | I42: 5.384208634e-10 | J42: 0 | K42: 0 | L42: 0 | M42: 0 | N42: 0 | O42: 0 | P42: 0 | Q42: -252714.0514 | S42: 105392.2721 | T42: 17721.46313 | U42: 721912.9625 | W42: 105392.2721 | X42: -286083.2535 | Y42: -9846795.649 | AA42: 105392.2721 | AB42: -286083.2535 | AC42: -9846795.649 | AE42: 105392.2721 | AF42: -286083.2535 | AG42: -9846795.649 | AI42: 105392.2721 | AJ42: -286083.2535 | AK42: -9846795.649 | AM42: 105392.2721 | AN42: -286083.2535 | AO42: -9846795.649 | AQ42: 105392.2721 | AR42: -286083.2535 | AS42: -9846795.649 | AU42: 105392.2721 | AV42: -286083.2535 | AW42: -9846795.649 | AY42: 105392.2721 | AZ42: -286083.2535 | BA42: -9846795.649 | BC42: 105392.2721 | BD42: -286083.2535 | BE42: -9846795.649 | BG42: 105392.2721 | BH42: -286044.843 | BI42: -9845962.352 | BK42: 105392.2721 | BL42: -286083.2535 | BM42: -9846795.649 | BO42: 105392.2721 | BP42: -286083.2535 | BQ42: -9846795.649 | BS42: 105392.2721 | BT42: -286083.2535 | BU42: -9846795.649 | BW42: 105392.2721 | BX42: -286083.2535 | BY42: -9846795.649 | CA42: 105392.2721 | CB42: -286083.2535 | CC42: -9846795.649 | CE42: 105392.2721 | CF42: -286083.2535 | CG42: -9846795.649 | CI42: 105392.2721 | CJ42: -286083.2535 | CK42: -9846795.649 | CM42: 105392.2721 | CN42: -286083.2535 | CO42: -9846795.649 | CQ42: 105392.2721 | CR42: -286083.2535 | CS42: -9846795.649
D43: 8 | E43: 2027 | G43: 19 | H43: 2027-08-01 | I43: 5.384208634e-10 | J43: 0 | K43: 0 | L43: 0 | M43: 0 | N43: 0 | O43: 0 | P43: 0 | Q43: -257074.2664 | S43: 105392.2721 | T43: 21365.01412 | U43: 848670.2487 | W43: 105392.2721 | X43: -291431.0813 | Y43: -10032834.46 | AA43: 105392.2721 | AB43: -291431.0813 | AC43: -10032834.46 | AE43: 105392.2721 | AF43: -291431.0813 | AG43: -10032834.46 | AI43: 105392.2721 | AJ43: -291431.0813 | AK43: -10032834.46 | AM43: 105392.2721 | AN43: -291431.0813 | AO43: -10032834.46 | AQ43: 105392.2721 | AR43: -291431.0813 | AS43: -10032834.46 | AU43: 105392.2721 | AV43: -291431.0813 | AW43: -10032834.46 | AY43: 105392.2721 | AZ43: -291431.0813 | BA43: -10032834.46 | BC43: 105392.2721 | BD43: -291431.0813 | BE43: -10032834.46 | BG43: 105392.2721 | BH43: -291391.2558 | BI43: -10031961.34 | BK43: 105392.2721 | BL43: -291431.0813 | BM43: -10032834.46 | BO43: 105392.2721 | BP43: -291431.0813 | BQ43: -10032834.46 | BS43: 105392.2721 | BT43: -291431.0813 | BU43: -10032834.46 | BW43: 105392.2721 | BX43: -291431.0813 | BY43: -10032834.46 | CA43: 105392.2721 | CB43: -291431.0813 | CC43: -10032834.46 | CE43: 105392.2721 | CF43: -291431.0813 | CG43: -10032834.46 | CI43: 105392.2721 | CJ43: -291431.0813 | CK43: -10032834.46 | CM43: 105392.2721 | CN43: -291431.0813 | CO43: -10032834.46 | CQ43: 105392.2721 | CR43: -291431.0813 | CS43: -10032834.46
D44: 8 | E44: 2028 | G44: 20 | H44: 2028-08-01 | I44: 5.384208634e-10 | J44: 0 | K44: 0 | L44: 0 | M44: 0 | N44: 0 | O44: 0 | P44: 0 | Q44: -261563.5286 | S44: 105392.2721 | T44: 25116.39601 | U44: 979178.9168 | W44: 105392.2721 | X44: -296937.1864 | Y44: -10224379.37 | AA44: 105392.2721 | AB44: -296937.1864 | AC44: -10224379.37 | AE44: 105392.2721 | AF44: -296937.1864 | AG44: -10224379.37 | AI44: 105392.2721 | AJ44: -296937.1864 | AK44: -10224379.37 | AM44: 105392.2721 | AN44: -296937.1864 | AO44: -10224379.37 | AQ44: 105392.2721 | AR44: -296937.1864 | AS44: -10224379.37 | AU44: 105392.2721 | AV44: -296937.1864 | AW44: -10224379.37 | AY44: 105392.2721 | AZ44: -296937.1864 | BA44: -10224379.37 | BC44: 105392.2721 | BD44: -296937.1864 | BE44: -10224379.37 | BG44: 105392.2721 | BH44: -296895.8957 | BI44: -10223464.96 | BK44: 105392.2721 | BL44: -296937.1864 | BM44: -10224379.37 | BO44: 105392.2721 | BP44: -296937.1864 | BQ44: -10224379.37 | BS44: 105392.2721 | BT44: -296937.1864 | BU44: -10224379.37 | BW44: 105392.2721 | BX44: -296937.1864 | BY44: -10224379.37 | CA44: 105392.2721 | CB44: -296937.1864 | CC44: -10224379.37 | CE44: 105392.2721 | CF44: -296937.1864 | CG44: -10224379.37 | CI44: 105392.2721 | CJ44: -296937.1864 | CK44: -10224379.37 | CM44: 105392.2721 | CN44: -296937.1864 | CO44: -10224379.37 | CQ44: 105392.2721 | CR44: -296937.1864 | CS44: -10224379.37
J45: =SUM(J24:J44) -> 1000000 | K45: 440887.75 | L45: 88177.56 | M45: 1529065.31 | N45: 0 | O45: 1529065.31 | P45: 1529065.31
K50: SCHEDULE 1 TO LEASE SUPPLEMENT
I52: SCHEDULE OF ANTICIPATED RENT PAYMENTS
I54: Rent Payments
I56: Fifth Business Day Preceding:
A58: {GOTO}H24~/rv{end}{down}~j59~ | J58: 1 | L58: 2 | O58: 2,3
A59: {GOTO}J24~/rv{end}{down}{up}~L59~ | J59: Date | L59: Prinicpal Portion | O59: Interest Portion
A60: {GOTO}K24~/rv{end}{down}{up}~O59~ | J60: 1995-02-01 | L60: 1690.24 | O60: 545.53
A61: /rvj44~L83~ | J61: 1995-08-01 | L61: 1736.73 | O61: 480.28
A62: /rvk44~o83~ | J62: 1996-02-01 | L62: 1784.49 | O62: 432.52
J63: 1996-08-01 | L63: 1833.56 | O63: 383.45
J64: 1997-02-01 | L64: 1883.98 | O64: 333.03
J65: 1997-08-01 | L65: 1935.79 | O65: 281.22
J66: 1998-02-01 | L66: 1989.03 | O66: 227.98
J67: 1998-08-01 | L67: 2043.72 | O67: 173.29
J68: 1999-02-01 | L68: 2099.93 | O68: 117.08
J69: 1999-08-01 | L69: 2157.67 | O69: 59.34
J70: 2000-02-01 | L70: 0 | O70: 0
J71: 2000-08-01 | L71: 0 | O71: 0
J72: 2001-02-01 | L72: 0 | O72: 0
J73: 2001-08-01 | L73: 0 | O73: 0
J74: 2002-02-01 | L74: 0 | O74: 0
J75: 2002-08-01 | L75: 0 | O75: 0
J76: 2003-02-01 | L76: 0 | O76: 0
J77: 2003-08-01 | L77: 0 | O77: 0
J78: 2004-02-01 | L78: 0 | O78: 0
J79: 2004-08-01 | L79: 0 | O79: 0
J84: TOTAL | L84: 19155.14 | O84: 3033.72
I89: (1) Payment period may not exceed the Useful Life of the Equipment. All payments will be due on the fifth business day preceding
I90: each Febrauary 1 and August 1. By delivery of this Lease Supplement, the Lessee represents that the term of the payments do not exceed the
I91: Useful Life of the Equipment.
I93: (2) Principal and interest will be completed by the Authority prior to execution by the parties hereto and will be subject to Rent Payment
I94: Reset (as defined in the Master Lease) from time to time upon notice from the Authority that the indebtedness incurred to finance the Equipment
I95: has been refinanced and setting forth the revised principal and interest schedules.
I97: The initial principal portions will be increased upon Rent Payment Reset to include an amount to pay the anticipated issuance costs
I98: to the Authority to be incurred in connection with the financing and/or refinancing of the Equipment. The interest amounts will be revised upon
I99: Rent Payment Reset to reflect the interest cost, fees, expenses, and other such costs of any refinancing, including any advances under a Credit
I100: Agreement. Furthermore, interest portions will be subject to increase upon the occurrence of an Event of Default under the Master Lease or
I101: any financing documents entered into by the Authority to finance or refinance the purchase of the Equipment.
I103: (3) The "net effective interest rate" may not exceed the rate allowable under Article 717k-2, Vernon's Annotated Civil Statutes.
I105: LS #: | J105: =B19 -> 0.01
I106: PV NUMBERS: | J106: =#REF! -> 
I107: USER NAME: | J107: =B7 -> 999
I108: USER AGY #: | J108: =B6 -> Any
